fUSD/lending_fUSD_20250504
["ID","MTS","AMOUNT","RATE_DAILY","PERIOD"]
[359862798,1746377441961,-450.0,0.00019835,2]
[359862799,1746377441971,-450.0,0.00019835,2]
[359862800,1746377441980,-450.0,0.00019835,2]
[359862801,1746377441990,-1663.75,0.00019835,2]
[359862802,1746377441999,-450.0,0.00019835,2]
[359862803,1746377442009,-1476.66,0.00019835,2]
[359862804,1746377442019,-1220.56,0.00019835,2]
[359862805,1746377442028,-450.0,0.00019835,2]
[359862806,1746377442038,-486.21,0.00019835,2]
[359862807,1746377442047,-583.73,0.00019835,2]
[359862808,1746377442057,-465.03,0.00019835,2]
[359862809,1746377442066,-450.0,0.00019835,2]
[359862810,1746377442076,-1023.79,0.00019835,2]
[359862811,1746377442087,-450.0,0.00019835,2]
[359862812,1746377442096,-1382.95,0.00019835,2]
[359862813,1746377442106,-790.18,0.00019835,2]
[359862814,1746377442115,-450.0,0.00019835,2]
[359862815,1746377442125,-519.52,0.00019835,2]
[359862816,1746377442138,-247.72,0.00019835,2]
[359862817,1746377442147,-450.0,0.00019835,2]
[359862818,1746377442157,-754.05,0.00019835,2]
[359862819,1746377442167,-20062.91,0.00019835,2]
[359862820,1746377442176,-757.13,0.00019835,2]
[359862821,1746377442186,-1709.88976133,0.00019845,2]
[359862822,1746377442196,-450.0,0.00019863,2]
[359862823,1746377442206,-450.0,0.00019863,2]
[359862824,1746377442215,-450.0,0.00019863,2]
[359862825,1746377442225,-450.0,0.00019863,2]
[359862826,1746377442235,-2483.7,0.00019863,2]
[359862827,1746377442244,-450.0,0.00019863,2]
[359862828,1746377442254,-450.0,0.00019863,2]
[359862829,1746377442264,-450.0,0.00019863,2]
[359862830,1746377442273,-18755.57967417,0.00019863,2]
[359862831,1746377442286,-532.68032583,0.00019863,2]
[359862832,1746377442297,-274.95,0.00019863,2]
[359862833,1746377442308,-293.23,0.00019863,2]
[359862834,1746377442318,-450.0,0.00019863,2]
[359862835,1746377442329,-450.0,0.00019863,2]
[359862836,1746377442339,-450.0,0.00019863,2]
[359862837,1746377442348,-1663.75,0.00019863,2]
[359862838,1746377442358,-331.6,0.00019863,2]
[359862839,1746377442369,-1476.66,0.00019863,2]
[359862840,1746377442379,-1220.56,0.00019863,2]
[359862841,1746377442389,-450.0,0.00019863,2]
[359862842,1746377442398,-486.21,0.00019863,2]
[359862843,1746377442408,-465.03,0.00019863,2]
[359862844,1746377442418,-450.0,0.00019863,2]
[359862845,1746377442428,-1023.79,0.00019863,2]
[359862846,1746377442437,-450.0,0.00019863,2]
[359862847,1746377442447,-1382.95,0.00019863,2]
[359862848,1746377442456,-790.18,0.00019863,2]
[359862849,1746377442466,-450.0,0.00019863,2]
[359862850,1746377442476,-519.52,0.00019863,2]
[359862851,1746377442486,-450.0,0.00019863,2]
[359862853,1746377442496,-754.05,0.00019863,2]
[359862855,1746377442505,-20062.91,0.00019863,2]
[359862857,1746377442515,-757.13,0.00019863,2]
[359862858,1746377442524,-1709.88976133,0.00019873,2]
[359862859,1746377442534,-500.0,0.00019873,2]
[359862860,1746377442544,-500.0,0.00019873,2]
[359862862,1746377442554,-500.0,0.00019873,2]
[359862863,1746377442564,-610.45972179,0.00019873,2]
[359862864,1746377442574,-500.0,0.00019889,2]
[359862865,1746377442584,-450.0,0.0001989,2]
[359862867,1746377442594,-450.0,0.0001989,2]
[359862869,1746377442604,-450.0,0.0001989,2]
[359862870,1746377442614,-450.0,0.0001989,2]
[359862872,1746377442624,-2483.7,0.0001989,2]
[359862874,1746377442634,-450.0,0.0001989,2]
[359862875,1746377442644,-450.0,0.0001989,2]
[359862876,1746377442654,-450.0,0.0001989,2]
[359862877,1746377442664,-19288.26,0.0001989,2]
[359862878,1746377442675,-450.0,0.0001989,2]
[359862879,1746377442685,-450.0,0.0001989,2]
[359862881,1746377442695,-450.0,0.0001989,2]
[359862882,1746377442705,-1663.75,0.0001989,2]
[359862883,1746377442715,-1476.66,0.0001989,2]
[359862884,1746377442726,-1220.56,0.0001989,2]
[359862885,1746377442735,-450.0,0.0001989,2]
[359862887,1746377442745,-486.21,0.0001989,2]
[359862888,1746377442755,-465.03,0.0001989,2]
[359862889,1746377442765,-450.0,0.0001989,2]
[359862890,1746377442775,-1023.79,0.0001989,2]
[359862891,1746377442785,-450.0,0.0001989,2]
[359862892,1746377442795,-1382.95,0.0001989,2]
[359862893,1746377442805,-790.18,0.0001989,2]
[359862894,1746377442815,-450.0,0.0001989,2]
[359862895,1746377442825,-519.52,0.0001989,2]
[359862896,1746377442835,-450.0,0.0001989,2]
[359862897,1746377442845,-754.05,0.0001989,2]
[359862898,1746377442855,-20062.91,0.0001989,2]
[359862899,1746377442866,-757.13,0.0001989,2]
[359862900,1746377442875,-7983.89591861,0.000199,2]
[359862901,1746377442885,-1709.88976133,0.000199,2]
[359862902,1746377442896,-593.16391771,0.000199,2]
[359862903,1746377442906,-2186.40294597,0.000199,2]
[359862904,1746377442916,-450.0,0.00019917,2]
[359862905,1746377442926,-450.0,0.00019917,2]
[359862906,1746377442936,-450.0,0.00019917,2]
[359862907,1746377442945,-450.0,0.00019917,2]
[359862908,1746377442955,-2483.7,0.00019917,2]
[359862909,1746377442965,-450.0,0.00019917,2]
[359862910,1746377442976,-450.0,0.00019917,2]
[359862911,1746377442985,-450.0,0.00019917,2]
[359862912,1746377442996,-19288.26,0.00019917,2]
[359862913,1746377443006,-450.0,0.00019917,2]
[359862914,1746377443016,-450.0,0.00019917,2]
[359862915,1746377443026,-450.0,0.00019917,2]
[359862916,1746377443036,-1663.75,0.00019917,2]
[359862917,1746377443046,-1476.66,0.00019917,2]
[359862918,1746377443056,-1220.56,0.00019917,2]
[359862919,1746377443065,-450.0,0.00019917,2]
[359862920,1746377443075,-486.21,0.00019917,2]
[359862921,1746377443085,-465.03,0.00019917,2]
[359862922,1746377443095,-450.0,0.00019917,2]
[359862923,1746377443105,-1023.79,0.00019917,2]
[359862924,1746377443114,-450.0,0.00019917,2]
[359862925,1746377443124,-1382.95,0.00019917,2]
[359862926,1746377443134,-790.18,0.00019917,2]
[359862927,1746377443144,-313.17,0.00019917,2]
[359862928,1746377443154,-519.52,0.00019917,2]
[359862929,1746377443164,-450.0,0.00019917,2]
[359862930,1746377443173,-754.05,0.00019917,2]
[359862931,1746377443183,-20062.91,0.00019917,2]
[359862932,1746377443193,-757.13,0.00019917,2]
[359862933,1746377443203,-925.0,0.00019941,2]
[359862934,1746377443212,-1300.0,0.00019941,2]
[359862935,1746377443222,-797.0,0.00019941,2]
[359862936,1746377443231,-550.0,0.00019941,2]
[359862937,1746377443240,-915.0,0.00019941,2]
[359862938,1746377443250,-1451.0,0.00019941,2]
[359862939,1746377443260,-581.0,0.00019941,2]
[359862940,1746377443269,-4010.0,0.00019941,2]
[359862941,1746377443279,-153.0,0.00019941,2]
[359862942,1746377443288,-6759.0,0.00019941,2]
[359862943,1746377443300,-878.0,0.00019941,2]
[359862944,1746377443311,-150.0,0.00019941,2]
[359862945,1746377443320,-1935.2,0.00019942,2]
[359862946,1746377443330,-163.192,0.00019942,2]
[359862947,1746377443339,-450.0,0.00019945,2]
[359862948,1746377443349,-450.0,0.00019945,2]
[359862949,1746377443359,-450.0,0.00019945,2]
[359862950,1746377443369,-450.0,0.00019945,2]
[359862951,1746377443379,-2483.7,0.00019945,2]
[359862952,1746377443390,-450.0,0.00019945,2]
[359862953,1746377443399,-450.0,0.00019945,2]
[359862954,1746377443410,-450.0,0.00019945,2]
[359862955,1746377443420,-19288.26,0.00019945,2]
[359862956,1746377443430,-450.0,0.00019945,2]
[359862957,1746377443440,-450.0,0.00019945,2]
[359862958,1746377443451,-450.0,0.00019945,2]
[359862959,1746377443461,-1663.75,0.00019945,2]
[359862960,1746377443472,-1476.66,0.00019945,2]
[359862961,1746377443483,-1220.56,0.00019945,2]
[359862962,1746377443643,-450.0,0.00019945,2]
[359862963,1746377443654,-486.21,0.00019945,2]
[359862964,1746377443665,-465.03,0.00019945,2]
[359862965,1746377443675,-450.0,0.00019945,2]
[359862966,1746377443686,-1023.79,0.00019945,2]
[359862967,1746377443695,-450.0,0.00019945,2]
[359862968,1746377443705,-1382.95,0.00019945,2]
[359862969,1746377443715,-790.18,0.00019945,2]
[359862970,1746377443725,-519.52,0.00019945,2]
[359862971,1746377443735,-450.0,0.00019945,2]
[359862972,1746377443744,-754.05,0.00019945,2]
[359862973,1746377443754,-20062.91,0.00019945,2]
[359862974,1746377443763,-757.13,0.00019945,2]
[359862975,1746377443773,-500.0,0.00019971,2]
[359862976,1746377443783,-450.0,0.00019972,2]
[359862977,1746377443792,-450.0,0.00019972,2]
[359862978,1746377443802,-450.0,0.00019972,2]
[359862979,1746377443814,-450.0,0.00019972,2]
[359862980,1746377443824,-2483.7,0.00019972,2]
[359862981,1746377443834,-546.40510673,0.00019972,2]
[359862982,1746377443844,-210.77940542,0.00019972,2]
[359862983,1746377443853,-450.0,0.00019972,2]
[359862984,1746377443863,-19288.26,0.00019972,2]
[359862985,1746377443873,-450.0,0.00019972,2]
[359862986,1746377443882,-450.0,0.00019972,2]
[359862987,1746377443891,-450.0,0.00019972,2]
[359862988,1746377443901,-1663.75,0.00019972,2]
[359862989,1746377443910,-1476.66,0.00019972,2]
[359862990,1746377443919,-1220.56,0.00019972,2]
[359862991,1746377443929,-450.0,0.00019972,2]
[359862992,1746377443939,-486.21,0.00019972,2]
[359862993,1746377443949,-465.03,0.00019972,2]
[359862994,1746377443959,-450.0,0.00019972,2]
[359862995,1746377443969,-1023.79,0.00019972,2]
[359862996,1746377443978,-450.0,0.00019972,2]
[359862997,1746377443988,-1382.95,0.00019972,2]
[359862998,1746377443998,-790.18,0.00019972,2]
[359862999,1746377444008,-519.52,0.00019972,2]
[359863000,1746377444017,-450.0,0.00019972,2]
[359863001,1746377444027,-150.0,0.00019972,2]
[359863002,1746377444036,-500.0,0.00019972,2]
[359863003,1746377444045,-754.05,0.00019972,2]
[359863004,1746377444055,-218.49578883,0.00019972,2]
[359863005,1746377444064,-20062.91,0.00019972,2]
[359863006,1746377444074,-500.0,0.00019972,2]
[359863007,1746377444083,-757.13,0.00019972,2]
[359863008,1746377444092,-732.0,0.00019986,2]
[359863009,1746377444102,-52926.4289931,0.00019986,2]
[359863010,1746377444111,-40492.81925753,0.00019999,7]
[359863011,1746377444121,-991.8265,0.00019999,2]
[359863012,1746377444131,-500.0,0.00019999,2]
[359863013,1746377444140,-500.0,0.00019999,2]
[359863014,1746377444150,-500.0,0.00019999,2]
[359863015,1746377444159,-500.0,0.00019999,2]
[359863016,1746377444168,-500.0,0.00019999,2]
[359863017,1746377444177,-500.0,0.00019999,2]
[359863018,1746377444186,-500.0,0.00019999,2]
[359863019,1746377444195,-500.0,0.00019999,2]
[359863020,1746377444204,-500.0,0.00019999,2]
[359863021,1746377444214,-409.09,0.00019999,2]
[359863022,1746377444223,-165.09624892,0.00019999,2]
[359863023,1746377444232,-500.0,0.00019999,2]
[359863024,1746377444242,-500.0,0.00019999,2]
[359863025,1746377444251,-500.0,0.00019999,2]
[359863026,1746377444260,-588.33190449,0.00019999,2]
[359863027,1746377444269,-500.0,0.00019999,2]
[359863028,1746377444279,-500.0,0.00019999,2]
[359863029,1746377444288,-500.0,0.00019999,2]
[359863030,1746377444301,-300.0,0.00019999,2]
[359863031,1746377444310,-150.0,0.00019999,2]
[359863032,1746377444320,-600.1916411,0.00019999,2]
[359863033,1746377444329,-500.0,0.00019999,2]
[359863034,1746377444339,-173.06460479,0.0002,2]
[359863035,1746377444348,-269390.27417876,0.0002,2]
[359863036,1746377444357,-169139.1374006,0.0002,2]
[359863037,1746377444488,-351.00461177,0.00019726,2]
[359863038,1746377444501,-229.88639499,0.00019726,2]
[359863039,1746377444512,-150.0,0.00019941,2]
[359863040,1746377444522,-1575.26293963,0.0002,2]
[359863041,1746377444533,-93954.8148,0.0002,2]
[359863042,1746377444551,-11305.16902787,0.0002,2]
[359863043,1746377444562,-3843.9573738,0.0002,2]
[359863045,1746377445613,-189.95194323,0.000199,2]
[359863046,1746377445623,-934.33334989,0.0002,2]
[359863047,1746377445823,-1871.38865168,0.0002,2]
[359863048,1746377445877,-749.209421,0.0002,2]
[359863049,1746377445930,-3585.06,0.0002,2]
[359863065,1746377446177,-32411.72092772,0.0002,2]
[359863155,1746377555030,151.24,0.00018968,2]
[359863156,1746377555254,151.24,0.00028452,120]
[359863157,1746377564903,3000.0,0.0003,30]
[359863158,1746377582940,2139.63,0.0003,30]
[359863159,1746377603979,2033.56986946,0.00018942,2]
[359863160,1746377637726,23900.0,0.00018965,2]
[359863161,1746377815046,153.14,0.000298,31]
[359863162,1746377815174,153.14,0.000298,31]
[359863163,1746377815217,153.14,0.000298,31]
[359863164,1746377815289,153.14,0.000298,31]
[359863165,1746377815332,153.14,0.000298,31]
[359863166,1746377815394,153.14,0.000298,31]
[359863167,1746377815456,153.14,0.000298,31]
[359863168,1746377815532,153.14,0.000298,31]
[359863169,1746377815584,153.14,0.000298,31]
[359863170,1746377815641,153.14,0.000298,31]
[359863171,1746377815705,153.14,0.000298,31]
[359863172,1746377815760,153.14,0.000298,31]
[359863173,1746377815822,153.14,0.000298,31]
[359863174,1746377815950,153.14,0.000298,31]
[359863175,1746377845129,155.09,0.00018868,2]
[359863176,1746377898960,250.0,0.00018846,2]
[359863177,1746378041570,1152.6,0.00016887,2]
[359863178,1746378041792,1152.6,0.00019151,2]
[359863182,1746378188106,6336.126513,7.945e-05,2]
[359863183,1746378319762,150.0,0.00018,2]
[359863184,1746378319821,150.0,0.00018049,2]
[359863185,1746378319899,150.0,0.00018098,2]
[359863186,1746378319966,150.0,0.00018146,2]
[359863187,1746378320037,150.0,0.00018195,2]
[359863188,1746378320105,150.0,0.00018244,2]
[359863189,1746378320190,150.0,0.00018293,2]
[359863190,1746378320249,150.0,0.00018341,2]
[359863191,1746378320319,150.0,0.0001839,2]
[359863192,1746378320388,150.0,0.00018439,2]
[359863193,1746378320456,150.0,0.00018488,2]
[359863194,1746378320532,150.0,0.00018537,2]
[359863195,1746378320608,150.0,0.00018585,2]
[359863196,1746378320676,150.0,0.00018634,2]
[359863197,1746378320748,150.0,0.00018683,2]
[359863198,1746378320816,150.0,0.00018732,2]
[359863199,1746378320924,150.0,0.0001878,2]
[359863200,1746378320955,150.0,0.00018829,2]
[359863201,1746378321038,150.0,0.00018878,2]
[359863202,1746378321097,150.0,0.00018927,2]
[359863203,1746378321136,150.0,0.00018976,2]
[359863204,1746378321187,150.0,0.00019024,2]
[359863205,1746378321261,150.0,0.00019073,2]
[359863206,1746378321327,150.0,0.00019122,2]
[359863207,1746378321401,150.0,0.00019171,2]
[359863208,1746378321472,150.0,0.0001922,4]
[359863209,1746378321541,150.0,0.00019268,4]
[359863210,1746378321612,150.0,0.00019317,4]
[359863211,1746378321681,150.0,0.00019366,4]
[359863212,1746378321753,150.0,0.00019415,4]
[359863213,1746378321834,150.0,0.00019463,4]
[359863216,1746378367210,1000.0,0.00018768,2]
[359863217,1746378375438,250.0,0.00017,2]
[359863218,1746378376044,-150.0,0.00019512,4]
[359863219,1746378376530,35.05327749,0.00019,2]
[359863220,1746378376560,264.94672251,0.00019,2]
[359863221,1746378403467,156.56,0.00018768,2]
[359863222,1746378413116,182.06382512,0.00018674,2]
[359863223,1746378424439,153.17,0.000298,31]
[359863224,1746378424493,153.17,0.000298,31]
[359863225,1746378424552,153.17,0.000298,31]
[359863226,1746378424622,153.17,0.000298,31]
[359863227,1746378424688,153.17,0.000298,31]
[359863228,1746378424739,153.17,0.000298,31]
[359863229,1746378424810,153.17,0.000298,31]
[359863230,1746378424865,153.17,0.000298,31]
[359863231,1746378424927,153.17,0.000298,31]
[359863232,1746378424983,153.17,0.000298,31]
[359863233,1746378425039,153.17,0.000298,31]
[359863234,1746378425102,153.17,0.000298,31]
[359863247,1746378425362,153.17,0.000298,31]
[359863248,1746378425406,153.17,0.000298,31]
[359863249,1746378425449,153.17,0.000298,31]
[359863254,1746378494098,510.32,0.00018745,2]
[359863261,1746378631700,-185.05327749,0.00019525,2]
[359863263,1746378631710,-166.88,0.00019534,2]
[359863264,1746378631719,-150.0,0.00019561,4]
[359863265,1746378631728,-150.0,0.0001961,4]
[359863266,1746378631737,-300.0,0.00019623,2]
[359863267,1746378631746,-300.0,0.00019624,2]
[359863268,1746378631755,-1200.0,0.00019624,2]
[359863269,1746378631764,-245.23017091,0.00019624,2]
[359863270,1746378631780,-54.76982909,0.00019624,2]
[359863271,1746378631789,-727.1486,0.00019625,2]
[359863272,1746378631798,-1369.70599407,0.00019625,2]
[359863273,1746378632004,-475.425,0.00019625,2]
[359863274,1746378632016,-295.19757354,0.00019625,2]
[359863275,1746378632027,-2317.37400801,0.00019625,2]
[359863276,1746378632038,-502.85226426,0.00019625,2]
[359863277,1746378632049,-567.80950872,0.00019625,2]
[359863278,1746378632061,-11495.85777013,0.00019625,2]
[359863279,1746378632073,-2264.09999,0.00019625,2]
[359863280,1746378632113,-623.92634515,0.00019625,2]
[359863281,1746378632124,-8986.48017089,0.00019625,2]
[359863283,1746378632135,-1613.0,0.00019625,2]
[359863285,1746378632152,-1886.38084821,0.00019625,2]
[359863287,1746378632163,-337.55144945,0.00019625,2]
[359863290,1746378632175,-2693.15555652,0.00019625,2]
[359863292,1746378632189,-454.92529219,0.00019625,2]
[359863294,1746378632200,-476.47053834,0.00019625,2]
[359863296,1746378632211,-2299.4495777,0.00019625,2]
[359863299,1746378632221,-415.09721781,0.00019625,2]
[359863301,1746378632232,-308.807424,0.00019625,2]
[359863303,1746378632243,-1069.85932377,0.00019625,2]
[359863306,1746378632255,-1875.72066215,0.00019625,2]
[359863309,1746378632266,-308.511995,0.00019625,2]
[359863414,1746378637825,-3261.28713495,0.00019625,2]
[359863415,1746378637875,-33912.98715442,0.00019625,2]
[359863416,1746378637885,-681.26775919,0.00019625,2]
[359863417,1746378637895,-11800.6673,0.00019626,2]
[359863418,1746378637905,-483.67928486,0.00019626,2]
[359863419,1746378637915,-1000.0,0.00019652,2]
[359863420,1746378637925,-850.0,0.00019652,2]
[359863421,1746378637936,-61748.4444,0.00019653,2]
[359863422,1746378637945,-182.9157527,0.00019653,2]
[359863423,1746378637955,-681.26775916,0.00019656,2]
[359863424,1746378637964,-150.0,0.00019659,4]
[359863425,1746378637974,-933.1402491,0.0001968,2]
[359863426,1746378637984,-681.26775916,0.00019686,2]
[359863427,1746378637994,-933.1402491,0.00019704,2]
[359863428,1746378638003,-150.0,0.00019707,4]
[359863429,1746378638013,-173.62114683,0.00019708,2]
[359863430,1746378638023,-207.4,0.00019713,2]
[359863431,1746378638033,-681.26775916,0.00019717,2]
[359863432,1746378638043,-150.0,0.00019721,2]
[359863433,1746378638053,-516.63758897,0.00019725,2]
[359863434,1746378638063,-500.0,0.00019725,2]
[359863435,1746378638072,-250.2740569,0.00019725,2]
[359863436,1746378638082,-516.63758897,0.00019725,2]
[359863437,1746378638091,-516.63758897,0.00019725,2]
[359863438,1746378638101,-516.63758897,0.00019725,2]
[359863439,1746378638111,-516.63758897,0.00019725,2]
[359863440,1746378638121,-516.63758897,0.00019725,2]
[359863441,1746378638130,-516.63758897,0.00019725,2]
[359863442,1746378638140,-516.63758897,0.00019725,2]
[359863444,1746378638150,-516.63758897,0.00019725,2]
[359863446,1746378638160,-516.63758897,0.00019725,2]
[359863448,1746378638169,-95.45872963,0.00019725,2]
[359863450,1746378638181,-421.17885934,0.00019725,2]
[359863452,1746378638191,-516.63758897,0.00019725,2]
[359863454,1746378638200,-516.63758897,0.00019725,2]
[359863456,1746378638209,-516.63758897,0.00019725,2]
[359863458,1746378638219,-516.63758897,0.00019725,2]
[359863459,1746378638228,-516.63758897,0.00019725,2]
[359863460,1746378638238,-516.63758897,0.00019725,2]
[359863461,1746378638247,-516.63758897,0.00019725,2]
[359863462,1746378638256,-516.63758897,0.00019725,2]
[359863463,1746378638266,-516.63758897,0.00019725,2]
[359863464,1746378638275,-516.63758897,0.00019725,2]
[359863465,1746378638285,-516.63758897,0.00019725,2]
[359863466,1746378638294,-516.63758897,0.00019725,2]
[359863467,1746378638303,-516.63758897,0.00019725,2]
[359863468,1746378638313,-516.63758897,0.00019725,2]
[359863469,1746378638322,-516.63758897,0.00019725,2]
[359863470,1746378638331,-516.63758897,0.00019725,2]
[359863471,1746378638341,-516.63758897,0.00019725,2]
[359863472,1746378638351,-516.63758897,0.00019725,2]
[359863473,1746378638360,-516.63758897,0.00019725,2]
[359863474,1746378638370,-516.63758897,0.00019725,2]
[359863475,1746378638379,-516.63758897,0.00019725,2]
[359863476,1746378638388,-516.63758897,0.00019725,2]
[359863477,1746378638398,-516.63758897,0.00019725,2]
[359863478,1746378638408,-516.63758897,0.00019725,2]
[359863479,1746378638417,-516.63758897,0.00019725,2]
[359863480,1746378638427,-516.63758897,0.00019725,2]
[359863481,1746378638436,-516.63758897,0.00019725,2]
[359863482,1746378638445,-516.63758897,0.00019725,2]
[359863483,1746378638454,-516.63758897,0.00019725,2]
[359863484,1746378638463,-516.63758897,0.00019725,2]
[359863485,1746378638473,-516.63758897,0.00019725,2]
[359863486,1746378638482,-516.63758897,0.00019725,2]
[359863487,1746378638491,-516.63758897,0.00019725,2]
[359863488,1746378638501,-516.63758897,0.00019725,2]
[359863489,1746378638511,-516.63758897,0.00019725,2]
[359863490,1746378638519,-516.63758897,0.00019725,2]
[359863491,1746378638528,-516.63758897,0.00019725,2]
[359863492,1746378638537,-516.63758897,0.00019725,2]
[359863493,1746378638546,-516.63758897,0.00019725,2]
[359863494,1746378638555,-516.63758897,0.00019725,2]
[359863495,1746378638564,-516.63758897,0.00019725,2]
[359863496,1746378638573,-516.63758897,0.00019725,2]
[359863497,1746378638582,-516.63758897,0.00019725,2]
[359863498,1746378638592,-516.63758897,0.00019725,2]
[359863499,1746378638602,-507.24417826,0.00019725,2]
[359863500,1746378638611,-507.24417826,0.00019725,2]
[359863501,1746378638620,-507.24417826,0.00019725,2]
[359863502,1746378638630,-507.24417826,0.00019725,2]
[359863503,1746378638639,-507.24417826,0.00019725,2]
[359863504,1746378638648,-507.24417826,0.00019725,2]
[359863505,1746378638658,-507.24417826,0.00019725,2]
[359863506,1746378638668,-507.24417826,0.00019725,2]
[359863507,1746378638677,-507.24417826,0.00019725,2]
[359863508,1746378638686,-507.24417826,0.00019725,2]
[359863509,1746378638696,-507.24417826,0.00019725,2]
[359863510,1746378638705,-507.24417826,0.00019725,2]
[359863511,1746378638715,-507.24417826,0.00019725,2]
[359863512,1746378638723,-507.24417826,0.00019725,2]
[359863513,1746378638732,-507.24417826,0.00019725,2]
[359863514,1746378638741,-507.24417826,0.00019725,2]
[359863515,1746378638751,-507.24417826,0.00019725,2]
[359863516,1746378638760,-507.24417826,0.00019725,2]
[359863517,1746378638769,-507.24417826,0.00019725,2]
[359863518,1746378638781,-507.24417826,0.00019725,2]
[359863519,1746378638790,-507.24417826,0.00019725,2]
[359863520,1746378638799,-507.24417826,0.00019725,2]
[359863521,1746378638809,-507.24417826,0.00019725,2]
[359863522,1746378638818,-507.24417826,0.00019725,2]
[359863523,1746378638828,-507.24417826,0.00019725,2]
[359863524,1746378638837,-507.24417826,0.00019725,2]
[359863525,1746378638846,-507.24417826,0.00019725,2]
[359863526,1746378638855,-507.24417826,0.00019725,2]
[359863527,1746378638865,-507.24417826,0.00019725,2]
[359863528,1746378638875,-507.24417826,0.00019725,2]
[359863529,1746378638885,-507.24417826,0.00019725,2]
[359863530,1746378638894,-507.24417833,0.00019725,2]
[359863531,1746378638904,-507.24417833,0.00019725,2]
[359863532,1746378638914,-29999.99,0.00019725,2]
[359863533,1746378638923,-6207.53501656,0.00019725,2]
[359863534,1746378639220,-1647.05674392,0.00019725,2]
[359863535,1746378639235,-7631.04508113,0.00019725,2]
[359863536,1746378639248,-1832.76746192,0.00019725,2]
[359863537,1746378639262,-1047.75569647,0.00019725,2]
[359863538,1746378639274,-2219.24430353,0.00019725,2]
[359863539,1746378639287,-1356.55,0.00019725,2]
[359863540,1746378639300,-4936.0794304,0.00019725,2]
[359863541,1746378639316,-273.4543321,0.00019725,2]
[359863544,1746378639928,-450.0,0.00019725,2]
[359863545,1746378640189,-383.329128,0.00019725,2]
[359863546,1746378640242,-11576.51280597,0.00019725,2]
[359863547,1746378640254,-227.9320649,0.00019726,2]
[359863548,1746378640263,-450.0,0.00019726,2]
[359863549,1746378640274,-450.0,0.00019726,2]
[359863550,1746378640286,-450.0,0.00019726,2]
[359863551,1746378640296,-450.0,0.00019726,2]
[359863552,1746378640307,-450.0,0.00019726,2]
[359863553,1746378640317,-450.0,0.00019726,2]
[359863554,1746378640329,-450.0,0.00019726,2]
[359863555,1746378640341,-450.0,0.00019726,2]
[359863556,1746378640354,-450.0,0.00019726,2]
[359863557,1746378640364,-450.0,0.00019726,2]
[359863558,1746378640373,-450.0,0.00019726,2]
[359863559,1746378640388,-450.0,0.00019726,2]
[359863560,1746378640398,-450.0,0.00019726,2]
[359863561,1746378640408,-346.26768263,0.00019726,2]
[359863562,1746378640418,-450.0,0.00019726,2]
[359863563,1746378640429,-450.0,0.00019726,2]
[359863564,1746378640439,-250.0,0.00019726,2]
[359863565,1746378640450,-450.0,0.00019726,2]
[359863566,1746378640462,-450.0,0.00019726,2]
[359863567,1746378640474,-415.47896754,0.00019726,2]
[359863568,1746378640484,-450.0,0.00019726,2]
[359863569,1746378640494,-450.0,0.00019726,2]
[359863570,1746378640504,-450.0,0.00019726,2]